fUST/lending_fUST_20240124
["ID","MTS","AMOUNT","RATE_DAILY","PERIOD"]
[312622337,1706105441181,-3195.65703111,0.00023806,2]
[312622338,1706105441192,-1804.34296889,0.00023806,2]
[312622339,1706105441201,-6734.5846447,0.00023806,2]
[312622340,1706105441211,-4738.42226257,0.00023806,2]
[312622341,1706105441222,-5346.96268662,0.00023806,2]
[312622342,1706105441234,-3708.33701803,0.00023806,2]
[312622343,1706105441245,-1784.49437462,0.00023806,2]
[312622344,1706105441254,-5000.0,0.00023806,2]
[312622345,1706105441263,-451.04800046,0.00023806,2]
[312622346,1706105441608,-4548.95199954,0.00023806,2]
[312622347,1706105441618,-5000.0,0.00023844,2]
[312622348,1706105441627,-471.6419199,0.00023894,2]
[312622349,1706105441636,-155.19377045,0.00023894,2]
[312622350,1706105441645,-2224.96312702,0.00023894,2]
[312622351,1706105441654,-246.85415565,0.00023894,2]
[312622352,1706105441663,-166.666666,0.00023969,2]
[312622353,1706105441673,-4015.45298494,0.00024,2]
[312622354,1706105441682,-153.0,0.0002411,2]
[312622355,1706105441690,-2335.08586316,0.00024113,2]
[312622356,1706105441705,-1190.0501118,0.00024113,2]
[312622357,1706105441718,-1474.86402504,0.00024113,2]
[312622358,1706105441728,-3808.35075668,0.00024113,2]
[312622422,1706105443114,-154.86062544,0.00016743,2]
[312622423,1706105443123,-154.86062544,0.00016743,2]
[312622424,1706105443133,-1191.64924332,0.00024113,2]
[312622425,1706105443142,-5000.0,0.00024113,2]
[312622426,1706105443152,-5000.0,0.00024113,2]
[312622427,1706105443163,-166.666666,0.00024482,2]
[312622428,1706105443172,-498.00832139,0.0002496,5]
[312622429,1706105443182,-4724.75315233,0.00025,2]
[312622430,1706105443191,-7384.14849766,0.00025,2]
[312622431,1706105443201,-2126.9,0.00025,2]
[312622432,1706105443212,-240.76587893,0.00025,2]
[312622433,1706105443222,-147981.28046926,0.00025272,2]
[312622434,1706105443231,-9286.90575802,0.00025297,2]
[312622435,1706105443241,-154.87609912,0.00026,7]
[312622436,1706105443251,-241.3166442,0.00026,2]
[312622437,1706105443260,-137244.5,0.00026,2]
[312622438,1706105443269,-200.5358957,0.00026027,2]
[312622439,1706105443279,-151.0,0.00026384,2]
[312622440,1706105443289,-288.0,0.000269,2]
[312622441,1706105443298,-289.71789283,0.00027,2]
[312622442,1706105443309,-108847.48908799,0.00027226,2]
[312622443,1706105443319,-151.0,0.00027226,2]
[312622444,1706105443331,-189.74209,0.00027226,2]
[312622445,1706105443340,-155.0,0.00027397,2]
[312622446,1706105443350,-500.0,0.00027397,2]
[312622447,1706105443360,-684.56779977,0.00027397,2]
[312622448,1706105443451,-500.0,0.00027397,2]
[312622449,1706105443461,-2379.36,0.00027397,3]
[312622450,1706105443470,-1652.34,0.00027397,3]
[312622451,1706105443480,-2183.29,0.00027397,3]
[312622452,1706105443489,-1819.4,0.00027397,3]
[312622453,1706105443500,-1516.17,0.00027397,3]
[312622454,1706105443510,-262.072816,0.000274,2]
[312622455,1706105443519,-3208.0368372,0.000275,2]
[312622456,1706105443529,-500.0,0.00027534,2]
[312622457,1706105443538,-500.0,0.00027671,2]
[312622458,1706105443547,-250.0511893,0.00027739,2]
[312622459,1706105443557,-500.0,0.00027808,2]
[312622460,1706105443567,-274.673789,0.00027821,2]
[312622461,1706105443576,-485.67699965,0.00027821,2]
[312622462,1706105443586,-186.68332749,0.00027843,2]
[312622463,1706105443595,-7681.20329041,0.00027855,2]
[312622464,1706105443605,-157.52162465,0.00027911,2]
[312622465,1706105443614,-500.0,0.00027945,2]
[312622466,1706105443623,-6545.18087169,0.00028,2]
[312622467,1706105443632,-600.0,0.00028,2]
[312622468,1706105443641,-500.0,0.00028082,2]
[312622469,1706105443651,-500.0,0.00028219,2]
[312622470,1706105443660,-500.0,0.00028356,2]
[312622471,1706105443669,-500.0,0.00028493,2]
[312622472,1706105443678,-500.0,0.0002863,2]
[312622473,1706105443687,-155.0,0.00028767,2]
[312622474,1706105443696,-500.0,0.00028767,2]
[312622475,1706105443705,-10000.0,0.00028793,2]
[312622476,1706105443714,-10000.0,0.00028793,2]
[312622477,1706105443723,-3559.309015,0.00028793,2]
[312622478,1706105443733,-179.043999,0.00028793,2]
[312622479,1706105443742,-179.043999,0.00028793,2]
[312622480,1706105443752,-5755.39,0.00028793,2]
[312622481,1706105443761,-5755.39,0.00028793,2]
[312622482,1706105443771,-5755.39,0.00028793,2]
[312622483,1706105443780,-5755.39,0.00028793,2]
[312622484,1706105443789,-5755.39,0.00028793,2]
[312622485,1706105443798,-5755.39,0.00028793,2]
[312622486,1706105443807,-5755.39,0.00028793,2]
[312622487,1706105443816,-5755.39,0.00028793,2]
[312622488,1706105443825,-5755.39,0.00028793,2]
[312622489,1706105443833,-5755.39,0.00028793,2]
[312622490,1706105443843,-416.821397,0.00028799,2]
[312622491,1706105443853,-416.821397,0.00028799,2]
[312622492,1706105443863,-313781.07908375,0.000288,2]
[312622493,1706105443984,-270046.28310656,0.000288,2]
[312622494,1706105443994,-416.821397,0.000288,2]
[312622495,1706105444003,-416.821397,0.000288,2]
[312622496,1706105444012,-926.454478,0.000288,2]
[312622497,1706105444022,-926.454478,0.000288,2]
[312622498,1706105444033,-1421.36026027,0.000288,2]
[312622499,1706105444046,-4550.41806035,0.000288,2]
[312622500,1706105444058,-1479.61017428,0.000288,2]
[312622501,1706105444137,-0.00050711,0.000288,2]
[312622519,1706105446112,-261.19714491,0.00023804,2]
[312622520,1706105446122,-154.86062544,0.00023805,4]
[312622521,1706105446131,-243.19997644,0.00023805,2]
[312622522,1706105446141,-200.16243934,0.00023805,2]
[312622523,1706105446151,-56.29728069,0.00023805,2]
[312622524,1706105446170,-123.44229078,0.00023805,2]
[312622525,1706105446179,-154.97435718,0.00023805,2]
[312622526,1706105446189,-382.77211181,0.00023805,2]
[312622527,1706105446198,-2039.5598213,0.00023805,2]
[312622528,1706105446208,-7962.34091115,0.00028799,2]
[312622529,1706105446217,-2548.61099799,0.000288,2]
[312622530,1706105446226,-10000.0,0.000288,2]
[312622531,1706105446235,-179.043999,0.000288,2]
[312622532,1706105446245,-179.043999,0.000288,2]
[312622533,1706105446254,-151.0,0.000288,2]
[312622534,1706105446263,-154.92253873,0.00028855,2]
[312622535,1706105446273,-500.0,0.00028904,2]
[312622536,1706105446282,-1942.40988753,0.00029,2]
[312622537,1706105446290,-309.47389438,0.00029,2]
[312622538,1706105446299,-54846.4330986,0.00029,2]
[312622539,1706105446309,-500.0,0.00029041,2]
[312622540,1706105446318,-500.0,0.00029178,2]
[312622541,1706105446327,-153.0,0.00029178,2]
[312622542,1706105446337,-153.0,0.00029178,2]
[312622543,1706105446346,-153.0,0.00029178,2]
[312622544,1706105446356,-153.0,0.00029178,2]
[312622545,1706105446365,-153.0,0.00029178,2]
[312622546,1706105446375,-154.4659568,0.00029178,2]
[312622547,1706105446384,-151.0,0.0002926,2]
[312622548,1706105446394,-500.0,0.00029315,2]
[312622549,1706105446403,-199.2894744,0.00029315,2]
[312622550,1706105446413,-457.5024889,0.00029315,2]
[312622551,1706105446423,-281.3626415,0.00029315,2]
[312622552,1706105446432,-153.0,0.00029315,2]
[312622553,1706105446442,-199.2894744,0.00029315,2]
[312622554,1706105446451,-199.2894744,0.00029315,2]
[312622555,1706105446461,-199.2894744,0.00029315,2]
[312622556,1706105446470,-199.2894744,0.00029315,2]
[312622557,1706105446479,-199.2894744,0.00029315,2]
[312622558,1706105446488,-199.2894744,0.00029315,2]
[312622559,1706105446498,-199.2894744,0.00029315,2]
[312622560,1706105446507,-500.0,0.00029452,2]
[312622561,1706105446517,-542.37633657,0.00029589,2]
[312622562,1706105446529,-99.75092289,0.00029589,2]
[312622563,1706105446538,-210.7718519,0.00029589,2]
[312622564,1706105446627,-6001.95092088,0.000299,2]
[312622565,1706105446719,-313997.04908005,0.000299,2]
[312622566,1706105446728,-151.0,0.000299,2]
[312622567,1706105446737,-151.0,0.000299,2]
[312622568,1706105446747,-2269.34380482,0.000299,2]
[312622569,1706105446756,-416.821397,0.000299,2]
[312622570,1706105446765,-416.821397,0.000299,2]
[312622571,1706105446774,-926.454478,0.000299,2]
[312622572,1706105446783,-926.454478,0.000299,2]
[312622573,1706105446792,-10000.0,0.000299,2]
[312622574,1706105446801,-10000.0,0.000299,2]
[312622575,1706105446810,-179.043999,0.000299,2]
[312622576,1706105446819,-179.043999,0.000299,2]
[312622577,1706105446828,-151.0,0.000299,2]
[312622578,1706105446837,-688.69585509,0.0003,4]
[312622579,1706105446846,-2371.98806335,0.0003,2]
[312622580,1706105446856,-600.0,0.0003,2]
[312622581,1706105446865,-391.08920373,0.0003,2]
[312622582,1706105446874,-139234.85869816,0.0003,4]
[312622583,1706105446884,-150.0,0.0003,4]
[312622584,1706105446893,-1009.0,0.0003,2]
[312622585,1706105446902,-929.35126292,0.0003,6]
[312622586,1706105446912,-22714.881219,0.0003,2]
[312622587,1706105446922,-4564.14831609,0.0003,3]
[312622588,1706105446931,-37683.51536681,0.0003,2]
[312622589,1706105447154,-0.47381043,0.0003,2]
[312622590,1706105447166,-9846.29802286,0.0003,2]
[312622606,1706105909169,1468.66343637,0.0001638,2]
[312622607,1706106460321,200.0,0.00021471,7]
[312622632,1706106633740,-876.60031792,0.0001849,2]
[312622634,1706106633750,-154.86062544,0.0001849,2]
[312622636,1706106633759,-1993.99921548,0.00018491,2]
[312622638,1706106633768,-323.68259118,0.00018491,2]
[312622640,1706106633778,-8764.16069463,0.00018491,2]
[312622642,1706106633786,-170.98714659,0.00018491,2]
[312622644,1706106633796,-1579.8258689,0.00018491,2]
[312622646,1706106633805,-2039.5598213,0.00018492,2]
[312622648,1706106633814,-555.52588132,0.00018492,2]
[312622650,1706106633823,-167.05007612,0.00018492,2]
[312622652,1706106633832,-154.86062544,0.00018492,2]
[312622654,1706106633841,-20879.12353862,0.00018492,2]
[312622656,1706106633850,-19706.16354589,0.00018492,2]
[312622658,1706106633860,-452.88221546,0.00018493,2]
[312622660,1706106633869,-262.41441764,0.00018493,2]
[312622662,1706106633878,-1294.07008414,0.00018493,2]
[312622664,1706106633888,-7962.34091115,0.00018493,2]
[312622666,1706106633897,-154.86062544,0.00018493,2]
[312622668,1706106633906,-243.19997644,0.00018493,2]
[312622670,1706106633915,-1242.8279432,0.00018493,2]
[312622672,1706106633925,-329.63381135,0.00018494,2]
[312622674,1706106633933,-265.548392,0.00018494,2]
[312622676,1706106633942,-3746.91160772,0.00018494,2]
[312622678,1706106633955,-154.97435718,0.00018495,2]
[312622680,1706106633964,-154.86062544,0.00018495,2]
[312622682,1706106633973,-181.02826495,0.00018495,2]
[312622684,1706106633982,-154.86062544,0.00018495,2]
[312622686,1706106633991,-154.86062544,0.00018495,2]
[312622688,1706106634000,-711.92584623,0.00018495,2]
[312622690,1706106634009,-36974.74812136,0.00018495,2]
[312622692,1706106634018,-154.86062544,0.00018496,2]
[312622694,1706106634027,-154.86062544,0.00018496,2]
[312622696,1706106634036,-237.74153663,0.00018496,2]
[312622698,1706106634046,-178.96550385,0.00018496,2]
[312622700,1706106634055,-2035.08647523,0.00018496,2]
[312622702,1706106634064,-4815.22334348,0.00018496,2]
[312622704,1706106634073,-1253.78104744,0.00018496,2]
[312622706,1706106634083,-166.72224739,0.00018496,2]
[312622708,1706106634092,-3486.61806957,0.00018496,2]
[312622710,1706106634102,-561.77353058,0.00018497,2]
[312622712,1706106634111,-588.5086678,0.00018497,2]
[312622714,1706106634120,-154.86062544,0.00018497,2]
[312622716,1706106634129,-154.86062544,0.00018497,2]
[312622718,1706106634138,-265.548392,0.00018497,2]
[312622720,1706106634147,-154.86062544,0.00018497,2]
[312622722,1706106634156,-154.86062544,0.00018497,3]
[312622724,1706106634165,-522.24897159,0.00018498,2]
[312622726,1706106634174,-156.07097879,0.00018498,2]
[312622728,1706106634183,-261.19714491,0.00018498,2]
[312622729,1706106634193,-595.27318689,0.00018499,2]
[312622731,1706106634206,-154.86062544,0.00018499,2]
[312622734,1706106634217,-18909.22401992,0.00018499,2]
[312622736,1706106634227,-644.5849569,0.000185,2]
[312622737,1706106634236,-24900.0,0.00018508,2]
[312622739,1706106634246,-760.76957335,0.00019538,2]
[312622742,1706106634255,-473.4243788,0.00020711,2]
[312622744,1706106634264,-386.04416712,0.00020822,2]
[312622746,1706106634274,-1567.04422168,0.00021795,2]
[312622748,1706106634282,-200.80913645,0.000219,2]
[312622750,1706106634292,-169.959651,0.00021918,2]
[312622752,1706106634302,-426.10577832,0.00022,2]
[312622753,1706106634311,-3969.42099078,0.00022,2]
[312622755,1706106634320,-154.86062544,0.00022,2]
[312622757,1706106634330,-169.959651,0.00022559,2]
[312622759,1706106634340,-1415.66703516,0.00023,2]
[312622761,1706106634349,-1237.32681829,0.00023189,2]
[312622764,1706106634362,-5000.0,0.00023189,2]
[312622766,1706106634372,-3306.44009772,0.00023189,2]
[312622768,1706106634383,-5000.0,0.00023189,2]
[312622770,1706106634393,-169.959651,0.000232,2]
[312622772,1706106634402,-154.9690062,0.00023804,2]
[312622774,1706106634412,-616.7500659,0.00023804,2]
[312622776,1706106634421,-526.75292248,0.00023804,2]
[312622778,1706106634431,-155.01179643,0.00023804,2]
[312622779,1706106634441,-169.959651,0.00023841,2]
[312622782,1706106634456,-151.0,0.0002433,2]
[312622784,1706106634466,-169.959651,0.00024482,2]
[312622786,1706106634478,-4724.75315233,0.00025,2]
[312622787,1706106634487,-7384.14849766,0.00025,2]
[312622788,1706106634496,-290.46013341,0.00027,2]
[312622789,1706106634506,-11433.85255359,0.00027246,2]
[312622824,1706106638653,-154.86062544,0.00018489,2]
[312622825,1706106638663,-638.74959921,0.00018489,2]
[312622826,1706106638673,-592.02959722,0.00018489,2]
[312622827,1706106638716,-52.55535968,0.00018489,2]
[312622828,1706106638726,-154.86062544,0.0001849,2]
[312622829,1706106638735,-1759.77744163,0.0001849,2]
[312622830,1706106638748,-6246.80564635,0.0001849,2]
[312622831,1706106638760,-1991.98305003,0.0001849,2]
[312622832,1706106638771,-5225.65999246,0.0001849,2]
[312622833,1706106638781,-2688.84412945,0.0001849,2]
[312622860,1706106641482,-1341.50585259,0.0001849,2]
[312622861,1706106641493,-16876.24634231,0.0001849,2]
[312622862,1706106641503,-161.07323855,0.00018491,2]
[312622863,1706106641512,-200.80913645,0.000219,2]
[312622864,1706106641522,-731.18,0.00027236,3]
[312622865,1706106641530,-8900.61157292,0.00027246,2]
[312622866,1706106641562,-24466.16935465,0.00027246,2]
[312622867,1706106641576,-14385.98481776,0.00027246,2]
[312622880,1706106643246,-81742.29876122,0.00027246,2]
[312622881,1706106643255,-155.0,0.00027397,2]
[312622882,1706106643264,-261.58936724,0.000274,2]
[312622883,1706106643273,-205.7524811,0.00027975,2]
[312622884,1706106643283,-600.0,0.00028,2]
[312622885,1706106643292,-199.2894744,0.00028493,2]
[312622886,1706106643301,-199.2894744,0.00028493,2]
[312622887,1706106643310,-199.2894744,0.00028493,2]
[312622888,1706106643319,-199.2894744,0.00028493,2]
[312622889,1706106643328,-199.2894744,0.00028493,2]
[312622890,1706106643338,-199.2894744,0.00028493,2]
[312622891,1706106643348,-195.6207648,0.00028493,2]
[312622892,1706106643357,-155.0,0.00028767,2]
[312622893,1706106643371,-213.43652609,0.00028794,2]
[312622894,1706106643380,-154.9690062,0.00028794,2]
[312622895,1706106643389,-246.21885002,0.00028794,2]
[312622896,1706106643399,-680.10116762,0.00028795,2]
[312622897,1706106643409,-154.9690062,0.00028795,2]
[312622898,1706106643418,-903.63325516,0.00028795,2]
[312622899,1706106643428,-175.22193864,0.00028795,2]
[312622900,1706106643438,-154.9690062,0.00028795,2]
[312622901,1706106643448,-13719.46516691,0.00028795,2]
[312622902,1706106643462,-6147.81339633,0.00028795,2]
[312622903,1706106643471,-154.9690062,0.00028795,2]
[312622904,1706106643490,-154.9690062,0.00028795,2]
[312622905,1706106643501,-1439.19025016,0.00028795,2]
[312622906,1706106643511,-184.86589447,0.00028795,2]
[312622907,1706106643521,-260.87494487,0.00028795,2]
[312622908,1706106643532,-301.93072688,0.00028795,2]
[312622909,1706106643542,-294.88989743,0.00028795,2]
[312622910,1706106643551,-211.53795191,0.00028796,2]
[312622911,1706106643561,-154.9690062,0.00028796,2]
[312622912,1706106643570,-1741.02914519,0.00028796,2]
[312622913,1706106643579,-190.08273826,0.00028797,3]
[312622914,1706106643589,-81207.38465248,0.00028797,2]
[312622915,1706106643598,-155.0993067,0.00028797,2]
[312622916,1706106643608,-166.56941425,0.00028797,2]
[312622917,1706106643618,-21681.30162387,0.00028798,2]
[312622918,1706106643627,-2962.98797076,0.00028799,2]
[312622919,1706106643637,-154.87609912,0.00029,2]
[312622920,1706106643646,-1942.40988753,0.00029,2]
[312622921,1706106643656,-500.0,0.0002908,2]
[312622922,1706106643666,-151.0,0.00029158,2]
[312622923,1706106643675,-199.2894744,0.00029315,2]
[312622924,1706106643685,-150.0,0.00029797,2]
[312622925,1706106643695,-16802.7127999,0.0003,2]
[312622926,1706106643705,-179.043999,0.0003,2]
[312622927,1706106643715,-179.043999,0.0003,2]
[312622928,1706106643725,-306.24847781,0.0003,2]
[312622929,1706106643734,-2371.98806335,0.0003,2]
[312622930,1706106643744,-1026.77897877,0.0003,2]
[312622931,1706106643753,-154.86062544,0.0003,4]
[312622932,1706106643763,-537.03951848,0.0003,4]
[312622933,1706106643773,-28384.0,0.0003,2]
[312622934,1706106643782,-396.0,0.0003,2]
[312622935,1706106643792,-197.8838443,0.0003013,2]
[312622936,1706106643801,-159.84657,0.00030137,2]
[312622937,1706106643811,-158.530834,0.00030137,2]
[312622938,1706106643820,-161.414499,0.00030137,2]
[312622939,1706106643829,-68251.10034799,0.00030137,2]
[312622940,1706106643839,-155.0,0.00030137,2]
[312622941,1706106643849,-4736.37372677,0.000305,2]
[312622942,1706106643859,-154.86062544,0.00031,4]
[312622943,1706106643869,-42489.38012009,0.00031,2]
[312622944,1706106643882,-2069.54395203,0.00031,2]
[312622970,1706106725189,243.37965784,0.00023185,20]
[312622975,1706107361170,561.77353058,0.000196,2]
[312622976,1706107361764,262.41441764,0.000196,2]
[312622977,1706107361991,1582.93015268,0.000196,2]
[312622978,1706107366372,323.68259118,0.000196,2]
[312622979,1706107369388,154.86062544,0.000196,3]
[312622980,1706107370643,154.86062544,0.000196,2]
[312622981,1706107372201,154.86062544,0.000196,2]
[312622982,1706107372311,1579.8258689,0.000196,2]
[312622983,1706107372804,154.86062544,0.000196,2]
[312622984,1706107373083,69.93093726,0.000196,2]
[312622985,1706107378690,2000.0,0.00018605,2]
[312622986,1706107378732,2500.0,0.00018605,2]
[312622987,1706107378771,2500.0,0.00018605,2]
[312622988,1706107378803,5000.0,0.00018605,2]
[312622989,1706107378835,10000.0,0.00018605,2]
[312622990,1706107389912,154.86062544,0.00017649,3]
[312622991,1706107405892,154.86062544,0.00017637,3]
[312622992,1706107425890,154.86062544,0.00017637,3]
[312622993,1706107442394,154.86062544,0.00017637,3]
[312622994,1706107462390,154.86062544,0.00016738,3]
[312622995,1706107482397,154.86062544,0.00016736,3]
[312622996,1706107498893,154.86062544,0.00016736,3]
[312622997,1706107520913,154.86062544,0.0001673,3]
[312622998,1706107540905,154.86062544,0.00016729,3]
[312622999,1706107560972,154.86062544,0.00016729,3]
[312623000,1706107577402,154.86062544,0.00016724,3]
[312623001,1706107595421,154.86062544,0.00016721,3]
[312623002,1706107617404,154.86062544,0.00016721,3]
[312623003,1706107626663,7986.81186928,0.00018475,2]
[312623004,1706107633902,154.86062544,0.00016717,3]
[312623028,1706107832439,-1993.99921548,0.00018447,2]
[312623030,1706107832448,-329.63381135,0.00018448,2]
[312623032,1706107832457,-1012.04036969,0.00018448,2]
[312623033,1706107832469,-230.78757351,0.00018448,2]
[312623034,1706107832478,-139.55116205,0.00018448,2]
[312623036,1706107832489,-1114.22988539,0.00018448,2]
[312623037,1706107832498,-154.86062544,0.00018448,2]
[312623039,1706107832507,-876.60031792,0.00018448,2]
[312623040,1706107832516,-6.94109761,0.00018448,2]
[312623042,1706107832527,-230.80043902,0.00018448,2]
[312623044,1706107832536,-3769.85752149,0.00018448,2]
[312623090,1706107839659,-154.86062544,0.00018446,2]
[312623092,1706107839668,-154.86062544,0.00018446,3]
[312623094,1706107839678,-2039.5598213,0.00018447,2]
[312623096,1706107839688,-8363.8088715,0.00018447,2]
[312623098,1706107839699,-10707.02220385,0.00018447,2]
[312623193,1706107841363,-1135.71797863,0.00018447,2]
[312623194,1706107841379,-700.04727037,0.00018447,2]
[312623195,1706107841389,-9163.7292816,0.00018448,2]
[312623196,1706107842179,2900.0,0.00017452,2]
[312623227,1706107843429,-1294.07008414,0.00018446,2]
[312623228,1706107843438,-24041.16131827,0.00018448,2]
[312623229,1706107843448,-595.27318689,0.00018449,2]
[312623230,1706107843458,-522.24897159,0.00018449,2]
[312623231,1706107843467,-154.86062544,0.00018449,2]
[312623232,1706107843477,-154.86062544,0.00018449,2]
[312623233,1706107843486,-8764.16069463,0.00018449,2]
[312623234,1706107843496,-154.86062544,0.0001845,2]
[312623235,1706107843505,-265.548392,0.0001845,2]
[312623236,1706107843514,-1579.8258689,0.0001845,2]
[312623237,1706107843523,-15224.22613047,0.0001845,2]
[312623238,1706107843533,-711.92584623,0.00018451,2]
[312623239,1706107843542,-3486.61806957,0.00018451,2]
[312623240,1706107843551,-588.5086678,0.00018451,2]
[312623241,1706107843560,-555.52588132,0.00018451,2]
[312623242,1706107843571,-2035.08647523,0.00018452,2]
[312623243,1706107843580,-170.98714659,0.00018452,2]
[312623244,1706107843590,-323.68259118,0.00018452,2]
[312623245,1706107843599,-154.86062544,0.00018452,2]
[312623246,1706107843608,-452.88221546,0.00018453,2]
[312623247,1706107843617,-243.19997644,0.00018453,2]
[312623248,1706107843626,-261.19714491,0.00018453,2]
[312623249,1706107843636,-262.41441764,0.00018453,2]
[312623250,1706107843645,-155.03436087,0.00018453,2]
[312623251,1706107843654,-7962.34091115,0.00018453,2]
[312623252,1706107843664,-20879.12353862,0.00018453,2]
[312623253,1706107843673,-178.96550385,0.00018454,2]
[312623254,1706107843682,-167.05007612,0.00018454,2]
[312623255,1706107843693,-8605.74690454,0.00018472,2]
[312623256,1706107843702,-8004.59572248,0.00018475,2]
[312623257,1706107843712,-321.88653482,0.00018582,2]
[312623258,1706107843723,-351.79761101,0.00019597,2]
[312623259,1706107843732,-956.67927306,0.00019597,2]
[312623260,1706107843744,-179.53412778,0.00019597,2]
[312623261,1706107843753,-156.06694639,0.00019598,2]
[312623262,1706107843763,-640.5243607,0.0001961,2]
[312623263,1706107843773,-561.23966754,0.0001961,2]
[312623264,1706107843782,-155.37149212,0.0001961,2]
[312623265,1706107843791,-155.24767173,0.0001961,2]
[312623266,1706107843800,-977.99536434,0.00020867,2]
[312623267,1706107843809,-1784.47114126,0.00021995,2]
[312623268,1706107843819,-164.11753563,0.00022,2]
[312623269,1706107843830,-551.75139751,0.00023185,2]
[312623270,1706107843841,-643.88018822,0.00023185,2]
[312623271,1706107843850,-323.46687378,0.00023185,2]
[312623272,1706107843860,-154.95351395,0.00023185,2]
[312623273,1706107843869,-154.86062544,0.00023185,2]
[312623274,1706107843879,-1741.02914519,0.00023185,2]
[312623275,1706107843888,-1418.00030683,0.00023186,2]
[312623276,1706107843897,-385.62724546,0.00023186,2]
[312623277,1706107843907,-242.12409008,0.00023187,2]
[312623278,1706107843916,-11934.32315275,0.00023187,2]
[312623279,1706107843925,-5000.0,0.00023189,2]
[312623280,1706107843934,-2968.33452052,0.00023189,2]
[312623281,1706107843944,-5000.0,0.00023189,2]
[312623282,1706107843954,-1321.04500743,0.00023189,2]
[312623283,1706107843963,-5000.0,0.00023189,2]
[312623284,1706107843972,-1933.62483679,0.00023189,2]
[312623285,1706107843981,-150.0,0.00023385,2]
[312623286,1706107843990,-150.086,0.00023385,2]
[312623287,1706107844000,-7384.14849766,0.00025,2]
[312623288,1706107844009,-4724.75315233,0.00025,2]
[312623289,1706107844018,-151.0,0.00026862,2]
[312623290,1706107844027,-290.46013341,0.00027,2]
[312623291,1706107844036,-157.09364511,0.00027235,2]
[312623292,1706107844046,-181.60236125,0.00027235,2]
[312623293,1706107844055,-155.65749331,0.00027244,2]
[312623294,1706107844065,-154.90647651,0.00027244,2]
[312623295,1706107844074,-1037.98229132,0.00027244,2]
[312623296,1706107844083,-155.15478322,0.00027244,2]
[312623297,1706107844092,-155.49478957,0.00027244,2]
[312623298,1706107844101,-155.15478322,0.00027244,2]
[312623299,1706107844111,-568.15921395,0.00027244,2]
[312623300,1706107844120,-271.42947646,0.00027245,2]
[312623301,1706107844129,-1455.86782517,0.00027245,2]
[312623302,1706107844139,-3617.39,0.00027397,3]
[312623303,1706107844148,-6981.67,0.00027397,3]
[312623304,1706107844157,-6981.67,0.00027397,3]
[312623305,1706107844167,-4654.44,0.00027397,3]
[312623306,1706107844176,-162.50713637,0.00027975,2]
[312623307,1706107844186,-315.35826057,0.00027975,2]
[312623308,1706107844196,-361.61178421,0.00027975,2]
[312623309,1706107844205,-154.97647894,0.00027975,2]
[312623310,1706107844215,-173.4560713,0.00027975,2]
[312623311,1706107844225,-1942.40988753,0.00029,2]
[312623312,1706107844234,-195.42586269,0.0003,2]
[312623313,1706107844243,-2371.98806335,0.0003,2]
[312623314,1706107844253,-155.0,0.0003,2]
[312623315,1706107844262,-159.84657,0.00030137,2]
[312623316,1706107844271,-161.467581,0.00030137,2]
[312623317,1706107844281,-158.530834,0.00030137,2]
[312623318,1706107844290,-4791.38003491,0.00030898,2]
[312623319,1706107844301,-90939.79355167,0.00031,2]
[312623348,1706107854951,154.86062544,0.00016603,3]
[312623349,1706107856815,3486.61806957,0.00018079,2]
[312623428,1706109032515,-329.63381135,0.00018313,2]
[312623429,1706109032525,-644.5849569,0.00018314,2]
[312623430,1706109032535,-1026.52542137,0.00018314,2]
[312623431,1706109032545,-711.92584623,0.00018314,2]
[312623432,1706109032554,-154.86062544,0.00018315,2]
[312623433,1706109032563,-154.86062544,0.00018315,2]
[312623434,1706109032572,-265.548392,0.00018315,2]
[312623435,1706109032582,-595.27318689,0.00018315,2]
[312623436,1706109032591,-20879.12353862,0.00018315,2]
[312623437,1706109032600,-522.24897159,0.00018316,2]
[312623438,1706109032609,-167.05007612,0.00018316,2]
[312623439,1706109032619,-243.19997644,0.00018316,2]
[312623440,1706109032628,-262.41441764,0.00018316,2]
[312623441,1706109032638,-18909.22401992,0.00018316,2]